bitfinex-derivatives/quotes_ETHF0:USTF0_20260307
["timestamp","ask_amount","ask_price","bid_price","bid_amount"]
[1772882257784,10.61836066,1991.7,1991.4,11.70987457]
[1772882258278,10.61836066,1991.7,1991.4,5.74469697]
[1772882258482,10.61936066,1991.7,1991.4,3.81865164]
[1772882259581,3.77336066,1991.9,1991.5,3.81865164]
[1772882261385,6.852,1991.8,1991.5,3.81865164]
[1772882261583,10.62536066,1991.8,1991.5,3.81865164]
[1772882263282,6.852,1991.8,1991.5,3.81865164]
[1772882263488,10.62536066,1991.8,1991.5,3.81865164]
[1772882264689,10.63236066,1991.8,1991.5,3.81865164]
[1772882264889,3.77336066,1991.7,1991.4,9.78382924]
[1772882265190,3.77336066,1991.7,1991.4,5.9651776]
[1772882267093,3.77336066,1991.7,1991.1,5.74469697]
[1772882267291,3.77336066,1991.7,1991.3,5.9651776]
[1772882269584,3.77336066,1991.7,1991.3,3.61902979]
[1772882269792,3.77336066,1991.7,1991.0,3.82497329]
[1772882270285,3.77336066,1991.7,1991.0,44.62497329]
[1772882271089,3.77336066,1991.7,1991.0,3.82497329]
[1772882276897,3.77336066,1991.5,1990.8,3.81865164]
[1772882277099,3.77336066,1991.3,1990.8,3.81865164]
[1772882277297,3.77336066,1991.1,1990.8,3.81865164]
[1772882277498,3.77336066,1991.0,1990.7,3.81865164]
[1772882277798,3.77336066,1991.0,1990.7,3.82409441]
[1772882277799,3.77862121,1991.0,1990.7,3.82409441]
[1772882278396,3.77862121,1991.0,1990.7,3.2509733]
[1772882278598,3.77862121,1991.0,1990.4,7.7975282]
[1772882278797,3.77862121,1991.0,1990.5,44.61865164]
[1772882279299,3.77862121,1991.0,1990.5,3.82285124]
[1772882280801,3.77862121,1991.0,1990.5,0.0041996]
[1772882280998,3.77862121,1991.0,1990.5,4.58977866]
[1772882282398,6.915,1990.9,1990.5,4.36189823]
[1772882282599,6.915,1990.8,1990.5,4.36189823]
[1772882283301,11.57219109,1990.8,1990.5,4.36189823]
[1772882284301,4.65719109,1990.7,1990.5,0.0041996]
[1772882284899,4.65719109,1990.7,1990.2,45.15769863]
[1772882285202,4.65719109,1990.7,1990.2,4.35769863]
[1772882286199,4.65719109,1990.7,1990.2,4.36263584]
[1772882286399,4.65719109,1990.7,1990.2,0.00493721]
[1772882286903,4.65719109,1990.8,1990.2,4.36263584]
[1772882287099,4.65719109,1990.9,1990.2,4.36263584]
[1772882287297,11.58619109,1990.8,1990.2,4.36263584]
[1772882287802,11.58719109,1990.8,1990.2,4.36263584]
[1772882289804,4.65719109,1990.7,1990.2,4.36263584]
[1772882291808,6.93,1990.8,1990.2,4.36263584]
[1772882292004,11.58719109,1990.8,1990.2,4.36263584]
[1772882292508,4.66245164,1991.0,1990.2,4.36263584]
[1772882292703,0.00526055,1991.0,1990.2,4.36263584]
[1772882292909,4.66245164,1991.0,1990.2,4.36263584]
[1772882295105,4.5017781,1990.8,1990.2,4.36263584]
[1772882295310,11.43953511,1990.7,1990.2,4.36263584]
[1772882295609,4.49153511,1991.2,1990.2,4.36263584]
[1772882295805,11.43953511,1991.1,1990.2,4.36263584]
[1772882296001,4.49153511,1991.0,1990.2,4.36263584]
[1772882296202,4.49696984,1991.0,1990.2,4.36263584]
[1772882301012,11.45296984,1991.0,1990.2,4.36263584]
[1772882301216,11.45296984,1991.0,1990.3,4.35769863]
[1772882301417,4.65719109,1990.9,1990.3,4.35769863]
[1772882301616,4.66262582,1991.0,1990.3,4.35769863]
[1772882307224,4.66262582,1991.0,1990.3,10.60835662]
[1772882307725,4.66262582,1991.0,1990.3,4.35769863]
[1772882310428,4.66262582,1991.0,1990.4,4.35769863]
[1772882310628,6.966,1990.9,1990.4,4.35769863]
[1772882310824,11.62319109,1990.9,1990.4,4.35769863]
[1772882311128,4.65719109,1990.8,1990.4,4.35769863]
[1772882311425,4.65719109,1990.8,1990.3,10.60835662]
[1772882312428,4.87078615,1990.7,1990.3,10.60835662]
[1772882312831,4.87078615,1990.7,1990.4,4.81770662]
[1772882315130,4.87078615,1990.7,1990.3,11.06836461]
[1772882315626,4.87078615,1990.7,1990.3,4.81770662]
[1772882316132,6.968,1990.8,1990.3,4.81770662]
[1772882316432,11.83878615,1990.8,1990.3,4.81770662]
[1772882316732,6.973,1990.9,1990.3,4.81770662]
[1772882317033,6.974,1990.9,1990.3,4.81770662]
[1772882319635,0.00543473,1991.0,1990.3,4.81770662]
[1772882319827,0.00543473,1991.0,1990.2,7.80246541]
[1772882319828,6.978,1991.3,1990.5,4.81770662]
[1772882320432,4.87078615,1991.8,1990.7,1.92618983]
[1772882320632,18.13297694,1991.7,1990.8,4.81770662]
[1772882320934,17.63154514,1991.6,1990.8,4.81770662]
[1772882321135,11.84978615,1991.6,1991.0,4.81770662]
[1772882322631,0.00353249,1991.7,1991.0,4.81770662]
[1772882322837,4.87431864,1991.7,1991.0,4.81770662]
[1772882323038,6.983,1991.6,1991.0,4.81770662]
[1772882323231,11.85378615,1991.6,1991.0,4.81770662]
[1772882323634,4.87078615,1991.5,1991.0,4.81770662]
[1772882323832,4.87078615,1991.5,1990.8,4.81770662]
[1772882332142,11.86578615,1991.4,1990.8,4.81770662]
[1772882332644,4.87078615,1991.6,1990.8,4.81770662]
[1772882332844,11.86678615,1991.5,1990.8,4.81770662]
[1772882333345,4.87078615,1991.4,1990.8,4.81770662]
[1772882352761,4.87078615,1991.4,1990.9,4.9114555]
[1772882352964,7.035,1991.3,1990.9,4.9114555]
[1772882353361,4.83652808,1991.6,1990.9,4.9114555]
[1772882353663,11.87352808,1991.5,1990.9,4.9114555]
[1772882354064,4.83652808,1991.5,1991.1,4.9114555]
[1772882354362,7.039,1991.4,1991.1,4.9114555]
[1772882355159,4.84006057,1991.7,1991.1,4.9114555]
[1772882355364,7.042,1991.6,1991.3,4.9114555]
[1772882355858,7.044,1991.6,1991.3,4.9114555]
[1772882357563,4.83652808,1991.7,1991.3,4.9114555]
[1772882357766,4.35887788,1991.9,1991.3,4.9114555]
[1772882357962,11.40987788,1991.8,1991.3,4.9114555]
[1772882358163,7.051,1991.7,1991.3,4.9114555]
[1772882358768,7.05456235,1991.7,1991.3,4.9114555]
[1772882359369,11.49934008,1991.9,1991.3,4.9114555]
[1772882359663,4.47674058,1992.0,1991.3,4.9114555]
[1772882359870,12.79955924,1991.9,1991.3,4.9114555]
[1772882360066,7.058,1991.9,1991.3,4.9114555]
[1772882360274,7.06181387,1991.9,1991.3,4.9114555]
[1772882360469,4.46940705,1992.3,1991.9,4.9114555]
[1772882360666,4.46940705,1992.3,1991.5,4.9114555]
[1772882360874,4.83652808,1991.9,1991.4,4.9114555]
[1772882361073,4.83652808,1991.7,1991.2,4.9114555]
[1772882361375,4.84199789,1991.7,1991.2,4.91650253]
[1772882361776,0.00546981,1991.7,1991.2,6.84278547]
[1772882361966,0.00546981,1991.7,1991.3,4.9114555]
[1772882362577,4.84199789,1991.7,1991.3,4.9114555]
[1772882362975,4.84199789,1991.7,1991.2,0.00504703]
[1772882362976,4.84199789,1991.7,1991.2,4.91650253]
[1772882363678,4.84199789,1991.7,1991.2,0.00504703]
[1772882364379,7.074,1991.6,1991.3,4.9114555]
[1772882365080,7.077,1991.6,1991.3,4.9114555]
[1772882366177,11.91352808,1991.6,1991.3,4.9114555]
[1772882366982,4.83652808,1991.5,1991.2,4.91650253]
[1772882367180,4.83652808,1991.5,1991.1,4.9114555]
[1772882368283,4.83652808,1991.5,1991.1,4.91675115]
[1772882379995,11.81117043,1991.6,1991.1,4.91675115]
[1772882380693,7.134,1991.5,1991.1,4.91675115]
[1772882384098,11.86817043,1991.5,1991.1,4.91675115]
[1772882385498,4.73417043,1991.5,1991.1,4.91675115]
[1772882385700,7.153,1991.4,1991.1,4.91675115]
[1772882388599,11.88494377,1991.4,1991.1,4.91675115]
[1772882389896,4.73194377,1991.4,1991.1,4.91675115]
[1772882390195,11.89994377,1991.4,1991.1,4.91675115]
[1772882394501,7.168,1991.4,1991.1,4.91675115]
[1772882395604,11.78052795,1991.4,1991.1,4.91675115]
[1772882395805,11.78052795,1991.4,1991.1,0.0013456]
[1772882396004,11.78052795,1991.4,1991.1,4.61223473]
[1772882396604,7.168,1991.4,1991.1,4.61223473]
[1772882397299,11.73813555,1991.4,1991.1,0.0013456]
[1772882397508,7.168,1991.4,1991.1,4.61223473]
[1772882399102,4.53616343,1991.6,1991.1,4.61223473]
[1772882399308,7.198,1991.5,1991.2,4.19433424]
[1772882401207,4.53616343,1991.6,1991.2,4.19433424]
[1772882401408,7.206,1991.5,1991.2,4.19433424]
[1772882402103,4.34674663,1991.8,1991.2,4.19433424]
[1772882402308,4.34674663,1992.0,1991.2,4.19433424]
[1772882403209,4.35109028,1992.0,1991.2,4.19433424]
[1772882403809,0.00434365,1992.0,1991.2,4.19433424]
[1772882404012,0.00434365,1992.0,1991.3,4.493952]
[1772882411915,4.1004681,1992.5,1991.4,4.493952]
[1772882412113,4.34674663,1993.1,1992.1,4.493952]
[1772882412312,4.34674663,1993.0,1992.1,4.493952]
[1772882412507,4.34674663,1993.0,1992.3,4.493952]
[1772882413012,4.35194667,1993.0,1992.3,4.493952]
[1772882415319,0.00520004,1993.0,1992.3,4.493952]
[1772882415616,4.34674663,1992.5,1991.8,4.29791369]
[1772882415813,4.34674663,1992.3,1991.2,4.493952]
[1772882416512,4.34674663,1992.3,1991.4,4.493952]
[1772882417516,4.34674663,1992.3,1991.2,4.493952]
[1772882418022,4.34674663,1992.3,1991.3,4.493952]
[1772882419220,4.34674663,1992.0,1991.3,4.493952]
[1772882420823,4.34674663,1991.5,1991.0,15.58193024]
[1772882421122,4.34674663,1991.4,1991.0,15.58193024]
[1772882421621,4.34674663,1991.4,1991.0,20.07588224]
[1772882421813,4.35051698,1991.4,1991.0,20.0801515]
[1772882422916,4.34674663,1991.5,1991.1,4.493952]
[1772882423314,4.34674663,1991.9,1991.1,4.493952]
[1772882423720,4.34674663,1991.9,1991.0,15.5861995]
[1772882423721,4.34674663,1991.9,1991.2,4.493952]
[1772882423923,4.35245836,1991.9,1991.0,15.5861995]
[1772882424115,4.35245836,1991.9,1991.0,20.0801515]
[1772882424519,2.53056468,1991.3,1990.1,4.72322593]
[1772882424827,2.53056468,1991.1,1990.1,4.72322593]
[1772882425126,2.53056468,1991.0,1990.1,4.72322593]
[1772882425316,2.53056468,1991.0,1990.3,4.72301498]
[1772882425516,2.53056468,1991.0,1990.3,4.72700366]
[1772882426318,1.92557313,1990.7,1989.6,4.75802994]
[1772882426523,3.50187041,1990.8,1989.6,4.75802994]
[1772882426722,3.50187041,1990.8,1989.8,4.75802994]
[1772882426923,3.50187041,1990.8,1989.9,4.75802994]
[1772882427329,3.50187041,1990.8,1989.9,4.76202289]
[1772882427822,3.47800649,1991.3,1990.3,4.75755376]
[1772882432626,3.47800649,1991.3,1989.9,17.47199295]
[1772882432627,3.47800649,1991.3,1990.0,6.19601979]
[1772882434227,3.47800649,1991.3,1989.9,0.00399295]
[1772882434434,3.19309844,1990.9,1989.5,6.19601979]
[1772882434727,3.19309844,1990.7,1989.5,6.19601979]
[1772882434931,3.5870495,1990.7,1989.5,6.19601979]
[1772882435230,3.19309844,1990.7,1989.5,6.19601979]
[1772882435432,3.19309844,1990.7,1989.5,6.20036549]
[1772882437328,3.19309844,1990.7,1989.6,4.41394555]
[1772882437535,3.19309844,1990.7,1989.7,6.19601979]
[1772882437933,3.19309844,1990.7,1989.8,4.41394555]
[1772882438131,3.19309844,1990.7,1989.9,6.19601979]
[1772882440227,3.19309844,1990.7,1990.0,6.19601979]
[1772882441738,3.19309844,1990.7,1990.1,4.41394555]
[1772882442031,3.19309844,1990.7,1990.0,6.19601979]
[1772882442234,3.19309844,1990.7,1990.1,4.41394555]
[1772882442433,3.19309844,1990.7,1990.0,6.19601979]
[1772882442634,3.19309844,1990.7,1990.1,4.41394555]
[1772882442936,2.96959894,1990.9,1990.2,6.19601979]
[1772882443732,2.96959894,1990.9,1990.3,4.41394555]
[1772882444131,2.96959894,1990.9,1990.4,4.41394555]
[1772882444333,2.96959894,1990.9,1990.2,6.19601979]
[1772882444838,2.96959894,1990.9,1990.3,4.41394555]
[1772882445239,2.96959894,1990.9,1990.4,4.41394555]
[1772882445538,2.96959894,1990.9,1990.2,6.19601979]
[1772882445840,2.96959894,1990.9,1990.3,10.60996534]
[1772882446139,2.96959894,1990.9,1990.3,6.19601979]
[1772882446738,2.96959894,1990.9,1990.4,4.41394555]
[1772882447437,2.96959894,1990.9,1989.5,0.0043457]
[1772882447438,2.96959894,1990.9,1990.1,6.25634083]
[1772882447838,2.96959894,1990.9,1990.3,6.25634083]
[1772882448237,2.96959894,1990.9,1990.4,1.07905719]
[1772882448434,2.96959894,1990.9,1990.4,7.34488718]
[1772882449041,2.96959894,1990.9,1990.4,1.07905719]
[1772882449742,2.96959894,1990.9,1990.2,6.27130211]
[1772882450144,2.96959894,1990.9,1990.4,1.07905719]
[1772882450643,2.96959894,1990.9,1990.5,1.07905719]
[1772882450839,2.96959894,1990.9,1990.2,6.27130211]
[1772882451145,2.96959894,1990.9,1990.4,1.07905719]
[1772882451644,2.96959894,1990.9,1990.5,1.07905719]
[1772882451844,2.96959894,1990.9,1990.2,6.27130211]
[1772882452343,0.10999359,1990.9,1990.4,6.25966867]
[1772882452544,0.10999359,1990.9,1989.6,6.25966867]
[1772882452844,0.10999359,1990.7,1990.2,6.25966867]
[1772882453237,0.10999359,1990.7,1990.5,1.07905719]
[1772882453441,0.10999359,1990.7,1990.3,6.25908274]
[1772882453834,0.10999359,1990.7,1990.6,1.07905719]
[1772882454039,0.10999359,1990.7,1990.3,6.25908274]
[1772882454545,0.10999359,1990.7,1989.6,6.26694909]
[1772882456343,0.07669729,1990.5,1989.6,6.26694909]
[1772882456541,0.08319954,1990.5,1989.6,6.26694909]
[1772882458345,0.03472103,1990.3,1989.6,6.26694909]
[1772882461441,5.78427238,1990.2,1989.6,6.26694909]
[1772882461638,7.241,1990.4,1989.6,6.26694909]
[1772882461948,6.24832626,1990.2,1989.1,5.99715679]
[1772882462143,5.78758756,1990.0,1989.1,5.99715679]
[1772882462344,5.78758756,1989.8,1989.1,5.99715679]
[1772882462842,5.78758756,1989.8,1989.1,6.00309931]
[1772882463848,5.78758756,1989.6,1988.6,6.08361089]
[1772882464248,5.78758756,1989.6,1988.8,6.08361089]
[1772882464847,5.78758756,1989.6,1988.8,6.0896416]
[1772882465052,5.78758756,1989.9,1988.8,6.0896416]
[1772882465249,11.56848021,1989.8,1988.8,6.0896416]
[1772882465446,5.78758756,1990.0,1988.8,6.0896416]
[1772882465647,11.56535608,1989.9,1988.8,6.0896416]
[1772882465842,11.56535608,1989.8,1988.8,6.0896416]
[1772882466157,5.78758756,1989.8,1988.8,6.0896416]
[1772882470256,5.78758756,1989.6,1988.8,6.0896416]
[1772882470555,5.78758756,1989.1,1988.8,6.0896416]
[1772882470757,7.7953071,1989.0,1988.7,1.93170769]
[1772882471252,7.7953071,1989.0,1988.2,1.91739726]
[1772882471759,5.86469125,1988.9,1988.3,1.91739726]
[1772882473458,5.85897466,1989.0,1988.3,1.91739726]
[1772882474156,0.00535878,1989.1,1988.3,1.91739726]
[1772882479166,5.86601458,1989.1,1988.3,1.91739726]
[1772882479362,5.8606558,1989.3,1988.3,1.91739726]
[1772882479664,5.86333519,1989.7,1988.3,1.91739726]
[1772882480563,5.86912623,1989.7,1988.3,1.91739726]
[1772882481866,5.86912623,1989.7,1988.5,2.1788504]
[1772882484068,5.80045318,1989.5,1988.5,2.1788504]
[1772882484868,5.78935405,1989.4,1988.2,0.00480524]
[1772882485068,5.78935405,1989.2,1988.2,2.23205094]
[1772882486670,5.78935405,1989.2,1988.2,0.00480524]
[1772882486860,5.79235053,1989.0,1988.2,0.00480524]
[1772882487669,5.79076186,1988.8,1987.7,2.14837198]
[1772882487860,5.79076186,1988.7,1987.7,2.14837198]
[1772882488661,5.79076186,1988.7,1987.7,2.15375851]
[1772882489870,5.79311845,1988.5,1987.7,2.15375851]
[1772882500574,6.51780333,1988.4,1987.7,2.15375851]
[1772882502774,6.29722001,1989.0,1987.8,1.90217988]
[1772882502775,6.51780333,1988.6,1987.8,1.90217988]
[1772882504077,6.51780333,1988.4,1987.8,1.90217988]
[1772882506873,6.51780333,1988.6,1987.8,1.90217988]
[1772882507079,6.51780333,1988.6,1988.2,1.77196881]
[1772882508267,6.51780333,1988.6,1987.7,0.00538653]
[1772882508268,6.51780333,1988.9,1988.4,1.73885564]
[1772882508472,0.25126,1989.9,1988.4,1.73885564]
[1772882508473,6.51780333,1989.2,1988.4,1.73885564]
[1772882509474,6.51780333,1989.2,1988.6,1.71216459]
[1772882516983,6.51780333,1989.6,1988.6,1.71216459]
[1772882517585,6.51780333,1989.6,1988.7,40.8]
[1772882517885,6.51780333,1989.6,1988.8,1.51575943]
[1772882518288,6.51780333,1989.6,1988.9,1.52029692]
[1772882519290,6.51780333,1989.6,1988.8,40.8]
[1772882519790,6.51780333,1989.6,1988.7,1.4689994]
[1772882520190,6.51780333,1989.6,1988.7,42.2689994]
[1772882520990,6.51780333,1989.6,1988.7,1.4689994]
[1772882521789,6.51780333,1989.6,1988.6,1.4492923]
[1772882522484,6.51780333,1989.6,1988.3,0.25145]
[1772882522689,5.81724597,1989.4,1988.0,1.40919238]
[1772882523990,5.81724597,1989.4,1988.2,1.38515451]
[1772882525093,5.81724597,1989.4,1988.4,1.36211179]
[1772882525393,5.81724597,1989.4,1988.6,1.33776062]
[1772882525592,5.81724597,1989.4,1988.8,1.33776062]
[1772882526195,5.81724597,1989.6,1988.8,1.33776062]
[1772882526396,5.82303701,1989.7,1988.8,1.33776062]
[1772882540707,5.82303701,1989.7,1988.9,0.64265893]
[1772882540907,4.51176939,1989.7,1989.1,0.64265893]
[1772882541909,4.51609952,1989.7,1989.1,0.64701885]
[1772882547118,4.51609952,1989.7,1989.1,0.00435992]
[1772882551521,4.51609952,1989.7,1989.1,1.79856465]
[1772882553221,4.51609952,1989.7,1989.2,1.77236021]
[1772882553722,0.05809917,1989.7,1989.2,1.77236021]
[1772882554017,4.19476389,1990.5,1989.4,5.63341374]
[1772882554018,5.58588308,1990.4,1989.4,5.63341374]
[1772882554222,5.58588308,1990.2,1989.6,5.63341374]
[1772882555021,5.59067718,1990.2,1989.6,5.63341374]
[1772882559723,5.59067718,1990.2,1989.5,24.96941374]
[1772882559922,5.59067718,1990.2,1989.6,5.63341374]
[1772882566730,0.0047941,1990.2,1989.6,5.63341374]
[1772882567925,5.59067718,1990.2,1989.6,5.63341374]
[1772882570838,5.59067718,1990.2,1989.5,5.63341374]
[1772882571034,5.59067718,1990.2,1989.6,19.479]
[1772882571235,5.59067718,1990.2,1989.6,16.90195171]
[1772882571533,5.59067718,1990.2,1989.6,14.47580252]
[1772882571734,5.59067718,1990.2,1989.6,11.43515867]
[1772882573734,5.59067718,1990.2,1989.2,13.41888541]
[1772882573931,5.59067718,1990.2,1989.3,25.12841374]
[1772882574835,5.59067718,1990.2,1989.4,5.63341374]
[1772882576633,5.59067718,1990.2,1989.2,5.63341374]
[1772882576837,5.58588308,1990.0,1989.2,5.63341374]
[1772882580840,5.58588308,1990.0,1989.1,19.51135992]
[1772882580841,5.83865386,1989.9,1989.1,19.51135992]
[1772882581045,5.73318672,1989.8,1989.1,19.51135992]
[1772882581247,5.73318672,1989.8,1989.1,25.64971467]
[1772882581643,5.73318672,1989.8,1989.2,6.13835475]
[1772882582139,5.88863025,1990.1,1989.2,6.13835475]
[1772882584446,5.88863025,1990.1,1989.3,5.53452494]
[1772882585842,5.88863025,1990.1,1989.5,5.53452494]
[1772882586042,0.0047941,1990.2,1989.7,5.53452494]
[1772882588444,5.88863025,1990.4,1989.9,5.53452494]
[1772882589051,5.88863025,1990.3,1989.7,5.53452494]
[1772882589255,5.88863025,1990.1,1989.6,5.53452494]
[1772882589449,5.89274656,1990.1,1989.7,5.53452494]
[1772882590250,5.89274656,1990.1,1989.5,25.06852494]
[1772882590644,5.89274656,1990.1,1989.3,13.31999661]
[1772882590852,5.88863025,1989.5,1989.1,5.53888486]
[1772882591448,5.88863025,1989.5,1989.1,1e-08]
[1772882591649,5.88863025,1989.5,1989.1,5.53452495]
[1772882595355,5.88863025,1989.5,1989.1,1e-08]
[1772882598860,5.88863025,1989.7,1989.1,1e-08]
[1772882600662,5.88863025,1989.7,1989.1,5.53452495]
[1772882601857,5.88863025,1989.5,1989.1,1e-08]
[1772882602157,5.88863025,1989.5,1989.0,25.13652494]
[1772882602959,5.88863025,1989.5,1989.0,25.14188175]
[1772882603458,5.88863025,1989.5,1989.1,5.53452494]
[1772882611660,5.88863025,1989.5,1989.0,19.60735681]
[1772882611866,5.88863025,1989.5,1989.0,25.14188175]
[1772882612268,5.88863025,1989.5,1989.1,4.9402079]
[1772882613966,5.88863025,1989.5,1989.0,19.60735681]
[1772882614170,5.88863025,1989.5,1989.0,24.54756471]
[1772882615368,5.88863025,1989.5,1989.1,4.9402079]
[1772882618770,5.88863025,1989.5,1989.0,24.54756471]
[1772882619975,5.88863025,1989.5,1989.0,19.60735681]
[1772882620175,5.88863025,1989.5,1989.0,24.54756471]
[1772882620574,5.88863025,1989.5,1989.1,4.9402079]
[1772882622178,4.21859904,1989.8,1988.7,40.8]
[1772882622179,4.78637045,1989.3,1988.9,19.813]
[1772882622369,4.78637045,1989.3,1988.9,24.7532079]
[1772882622773,4.78637045,1989.1,1988.9,19.24335992]
[1772882622975,4.78637045,1989.1,1988.9,14.78535972]
[1772882623176,4.78637045,1989.1,1988.9,14.79000173]
[1772882623574,4.78637045,1989.1,1988.9,0.00464201]
[1772882626674,4.78637045,1989.1,1988.6,19.83]
[1772882626873,4.78637045,1989.1,1988.6,24.7702079]
[1772882627173,4.78637045,1989.1,1988.6,4.9402079]
[1772882627773,4.78637045,1989.1,1988.6,4.94614791]
[1772882629576,4.78637045,1989.3,1988.6,4.94614791]
[1772882633287,4.78637045,1989.3,1988.7,24.8942079]
[1772882634187,4.78637045,1989.3,1988.8,4.9402079]
[1772882637290,4.78637045,1988.8,1988.1,12.82107616]
[1772882637498,4.78637045,1988.5,1988.1,4.9402079]
[1772882638390,4.79183844,1988.5,1988.1,4.94576321]
[1772882641088,4.84184018,1988.9,1988.3,4.72333882]
[1772882641293,4.84184018,1989.0,1988.5,4.72333882]
[1772882642286,4.84604615,1989.0,1988.4,25.11452139]
[1772882642491,4.84604615,1989.0,1988.4,5.06352139]
[1772882642690,4.84604615,1989.0,1988.3,20.022]
[1772882642890,4.84604615,1989.0,1988.3,25.08552139]
[1772882643497,4.84604615,1989.0,1988.3,25.05752139]
[1772882643998,4.89280225,1988.4,1988.1,5.0690767]
[1772882644297,4.89280225,1988.4,1988.1,0.00555531]
[1772882645298,4.89280225,1988.9,1988.1,5.0690767]
[1772882645500,4.89700822,1989.0,1988.2,5.06352139]
[1772882655606,0.00420597,1989.0,1988.2,5.06352139]
[1772882658507,4.89700822,1989.0,1988.2,5.06352139]
[1772882663105,4.89280225,1989.5,1988.2,5.06352139]
[1772882663310,4.89280225,1989.3,1988.4,5.06352139]
[1772882664210,4.89804318,1989.3,1988.4,5.06352139]
[1772882682026,10.55826142,1989.2,1988.4,5.06352139]
[1772882682223,4.57872758,1989.0,1988.3,4.68656622]
[1772882695141,4.57872758,1989.0,1988.1,24.75312153]
[1772882695432,4.57872758,1989.0,1988.2,4.68656622]
[1772882702044,4.25287978,1989.2,1988.2,4.68656622]
[1772882702345,0.00524093,1989.3,1988.4,4.05443002]
[1772882702746,4.25287978,1989.6,1988.4,4.05443002]
[1772882703348,4.25287978,1989.6,1988.5,4.05443002]
[1772882703842,4.25684506,1989.6,1988.5,4.05443002]
[1772882705437,4.25684506,1989.6,1988.6,1.93078648]
[1772882705736,4.25684506,1989.6,1988.8,4.05443002]
[1772882706349,4.25684506,1989.6,1989.0,4.05443002]
[1772882707143,6.14059004,1990.2,1989.3,4.05443002]
[1772882707348,4.25287978,1990.1,1989.5,4.05443002]
[1772882708146,4.2590733,1990.1,1989.5,4.05949976]
[1772882712556,4.25287978,1990.0,1989.5,0.00506974]
[1772882712851,4.25287978,1990.0,1989.5,4.05949976]
[1772882718263,4.25287978,1989.8,1989.2,4.05443002]
[1772882718554,4.25287978,1989.8,1988.2,19.3988605]
[1772882718555,4.25287978,1989.6,1988.9,4.05443002]
[1772882718754,4.25287978,1989.3,1988.9,4.05443002]
[1772882719157,4.25287978,1989.3,1988.9,0.0057043]
[1772882720558,4.25287978,1989.3,1988.6,4.05443002]
[1772882721459,4.25287978,1989.2,1988.6,4.06082572]
[1772882723159,4.25287978,1989.2,1988.6,23.89382572]
[1772882724258,4.25287978,1989.2,1988.7,4.05443002]
[1772882726554,4.25287978,1989.4,1988.8,4.05443002]
[1772882726760,4.25287978,1989.6,1988.8,4.05443002]
[1772882727457,4.25287978,1989.6,1989.0,4.05443002]
[1772882727658,4.25287978,1989.6,1988.9,1.92974881]
[1772882727659,4.25287978,1989.6,1989.2,4.05443002]
[1772882728257,4.25287978,1989.6,1989.1,23.98543002]
[1772882728654,4.25287978,1989.6,1989.2,4.05443002]
[1772882732463,4.25287978,1989.6,1989.0,3.8582366]
[1772882732665,4.25287978,1989.6,1989.1,23.8432366]
[1772882734160,4.25287978,1989.6,1989.2,3.8582366]
[1772882735466,3.80292628,1990.0,1989.2,3.8582366]
[1772882735666,3.80292628,1989.8,1989.2,3.8582366]
[1772882737466,3.8091198,1990.1,1989.4,3.8582366]
[1772882737658,3.80292628,1990.0,1989.5,3.8582366]
[1772882737861,3.80292628,1990.0,1989.4,3.8582366]
[1772882739866,3.8091198,1990.1,1989.4,3.8582366]
[1772882740165,3.8091198,1990.1,1989.6,3.8582366]
[1772882743867,0.00619352,1990.1,1989.8,3.8582366]
[1772882744161,3.80292628,1990.3,1989.8,3.8582366]
[1772882745164,3.80813481,1990.3,1989.8,3.8582366]
[1772882748569,3.80292628,1990.8,1990.0,3.8582366]
[1772882748762,3.80292628,1990.6,1990.0,3.8582366]
[1772882749569,3.80708469,1990.6,1990.0,3.86289739]
[1772882750665,3.80708469,1990.6,1990.0,0.00466079]
[1772882750969,3.80292628,1990.2,1989.7,23.9282366]
[1772882751767,3.80292628,1990.2,1989.5,3.8582366]
[1772882751967,3.80292628,1990.2,1989.7,3.86232197]
[1772882752872,3.80292628,1990.2,1989.7,0.00408537]
[1772882754672,3.80292628,1990.2,1989.7,3.86232197]
[1772882757277,3.80292628,1990.2,1989.7,0.00408537]
[1772882757477,3.80292628,1990.2,1989.7,3.86232197]
[1772882762184,3.80292628,1990.2,1989.7,0.00408537]
[1772882764383,3.44014708,1990.4,1989.8,3.43586151]
[1772882774295,3.44430549,1990.6,1989.8,3.43586151]
[1772882774496,5.95896336,1990.5,1989.8,3.43586151]
[1772882774796,3.44014708,1990.5,1989.8,3.43586151]
[1772882780803,3.44430549,1990.6,1989.8,3.43586151]
[1772882786707,0.00415841,1990.6,1989.9,3.43586151]
[1772882786907,0.00415841,1990.6,1990.1,3.43586151]
[1772882788007,3.44430549,1990.6,1989.9,3.43586151]
[1772882789009,3.44430549,1990.6,1989.8,23.79286151]
[1772882790008,3.44430549,1990.6,1989.9,3.43586151]
[1772882796717,3.34326444,1990.4,1989.7,23.77221279]
[1772882797518,3.34326444,1990.4,1989.8,3.36812742]
[1772882800221,3.34326444,1990.2,1989.3,3.36812742]
[1772882800416,3.34326444,1990.2,1989.4,3.36812742]
[1772882801418,3.34326444,1990.2,1989.4,3.37374281]
[1772882813930,3.34326444,1990.2,1989.5,3.36812742]
[1772882818727,3.34326444,1990.2,1989.4,20.50061539]
[1772882818934,3.34326444,1990.2,1989.4,23.86874281]
[1772882820628,3.34326444,1990.2,1989.5,3.18958329]
[1772882824534,3.34326444,1990.2,1989.4,3.24497848]
[1772882825137,3.32176487,1990.0,1989.4,3.24497848]
[1772882832142,3.32176487,1990.1,1989.4,3.24497848]
[1772882853466,2.73432866,1989.9,1989.4,3.24497848]
[1772882856866,2.73432866,1990.2,1989.5,2.8625265]
[1772882857065,2.73432866,1990.0,1989.5,2.8625265]
[1772882859869,2.73432866,1990.0,1989.4,2.86814189]
[1772882861766,4.20467142,1990.2,1989.4,2.86814189]
[1772882861767,2.73432866,1989.8,1989.4,0.00561539]
[1772882861972,2.73432866,1989.8,1989.2,2.8625265]
[1772882862170,5.95890891,1989.7,1989.2,2.8625265]
[1772882862368,1.92923865,1989.9,1989.2,2.8625265]
[1772882862369,2.73432866,1989.6,1989.2,2.8625265]
[1772882862871,2.73432866,1989.8,1989.2,2.8679216]
[1772882874369,2.73432866,1989.8,1989.2,0.0053951]
[1772882875374,2.73432866,1989.6,1989.2,0.0053951]
[1772882876076,1.92923865,1989.5,1989.0,2.8625265]
[1772882876277,2.73432866,1989.4,1989.0,2.8625265]
[1772882877172,2.73432866,1989.4,1989.0,2.86751499]
[1772882878077,2.73432866,1989.4,1989.0,0.00498849]
[1772882878573,2.73432866,1989.4,1989.0,2.86751499]
[1772882882079,2.8472648,1989.6,1989.0,2.86751499]
[1772882897691,2.8472648,1989.4,1989.0,0.00498849]
[1772882898189,2.8472648,1989.4,1989.0,2.84087885]
[1772882901893,2.8472648,1989.7,1989.0,2.84087885]
[1772882902094,8.80667581,1989.6,1989.0,2.84087885]
[1772882902288,5.95941101,1989.5,1989.0,2.84087885]
[1772882902495,2.8472648,1989.6,1989.0,2.84087885]
[1772882902695,8.80713185,1989.5,1989.0,2.84087885]
[1772882902895,2.8472648,1989.5,1989.0,2.84087885]
[1772882903196,2.8472648,1989.7,1989.0,2.84087885]
[1772882903395,5.96021397,1989.6,1989.0,2.84087885]